[Event "Sheffield Masters 2024"]
[White "Ledger,Andrew J"]
[Black "Pein,Jonathan"]
[Site "Sheffield"]
[Round "2.3"]
[Annotator "RC"]
[Result "0-1"]
[Date "2024.04.11"]
[WhiteElo "2336"]
[BlackElo "2247"]
[PlyCount "66"]
[TimeControl "5400+30"]

1. d4 {[%emt 0:0:4]} Nf6 {[%emt 0:0:33]} 2. c4 {[%emt 0:0:8]} e6 {[%emt 0:0:7]} 3. Nc3 {[%emt 0:0:13]} d5 {[%emt 0:0:8]} 4. cxd5 {[%emt 0:0:50]} exd5 {[%emt 0:0:6]} 5. Bg5 {[%emt 0:0:6]} Be7 {[%emt 0:0:18]} 6. e3 {[%emt 0:0:43]} c6 {[%emt 0:0:20]} 7. Bd3 {[%emt 0:1:24]} Nbd7 {[%emt 0:0:15]} 8. Nf3 {[%emt 0:1:6]} Nh5 {[%emt 0:0:59]} 9. Bxe7 {[%emt 0:0:29]} Qxe7 {[%emt 0:0:1]} 10. O-O {[%emt 0:0:18]} O-O {[%emt 0:0:55]} 11. Qc2 {[%emt 0:3:40]} g6 {[%emt 0:1:54]} 12. Rab1 {[%emt 0:2:58]} Nb6 {[%emt 0:2:20]} 13. b4 {[%emt 0:6:27]} a6 {[%emt 0:1:14]} 14. Rfe1 {[%emt 0:6:8]} Ng7 {[%emt 0:4:3]} 15. e4 {[%emt 0:10:18]} dxe4 {[%emt 0:6:10]} 16. Nxe4 {[%emt 0:3:49]} Nd5 {[%emt 0:2:53]} 17. Qd2 {[%emt 0:15:1]} Nf5 {[%emt 0:13:39]} 18. Nc3 {[%emt 0:6:11]} Qd6 {[%emt 0:3:27]} 19. Nxd5 {[%emt 0:0:40]} Qxd5 {[%emt 0:2:5]} 20. Re5 {[%emt 0:1:2]} Qd6 {[%emt 0:4:12]} 21. Qf4 {[%emt 0:5:4]} Ng7 {[%emt 0:4:48]} 22. Qh6 {[%emt 0:3:49]} f6 {[%emt 0:6:34]} 23. Bc4+ {[%emt 0:5:55]} Be6 {[%emt 0:10:59]} 24. Rxe6 {[%emt 0:2:49]} Nxe6 {[%emt 0:0:8]} 25. Re1 {[%emt 0:1:30]} Rae8 {[%emt 0:2:2]} 26. Qh3 {[%emt 0:2:25]} Qxb4 {[%emt 0:5:26]} 27. Bb3 {[%emt 0:2:30]} f5 {[%emt 0:10:28]} 28. Rxe6 {[%emt 0:3:48]} Rxe6 {[%emt 0:0:57]} 29. Bxe6+ {[%emt 0:0:5]} Kg7 {[%emt 0:0:7]} 30. Bb3 {[%emt 0:2:2]} Qc3 {[%emt 0:1:17]} 31. Kh1 {[%emt 0:14:28]} Qa1+ {[%emt 0:8:27]} 32. Ng1 {[%emt 0:0:0]} Re8 {[%emt 0:0:34]} 33. Qg3 {[%emt 0:0:0]} Qxg1+ {[%emt 0:0:23]} 0-1

[Event "Sheffield Masters 2024"]
[White "Pal,Rohan"]
[Black "Wall,Tim P"]
[Site "Sheffield"]
[Round "2.4"]
[Annotator "RC"]
[Result "1-0"]
[Date "2024.04.11"]
[WhiteElo "2142"]
[BlackElo "2197"]
[PlyCount "69"]
[TimeControl "5400+30"]

1. e4 {[%emt 0:0:3]} c5 {[%emt 0:0:10]} 2. Be2 {[%emt 0:0:55]} d5 {[%emt 0:4:12]} 3. d3 {[%emt 0:0:11]} e5 {[%emt 0:5:32]} 4. Bg4 {[%emt 0:7:37]} Bxg4 {[%emt 0:8:21]} 5. Qxg4 {[%emt 0:0:7]} Nf6 {[%emt 0:0:12]} 6. Qe2 {[%emt 0:2:33]} Nc6 {[%emt 0:3:9]} 7. Nf3 {[%emt 0:6:37]} d4 {[%emt 0:5:47]} 8. Nbd2 {[%emt 0:13:29]} Bd6 {[%emt 0:3:58]} 9. O-O {[%emt 0:5:45]} Nd7 {[%emt 0:2:15]} 10. c3 {[%emt 0:3:43]} Nf8 {[%emt 0:9:0]} 11. Nc4 {[%emt 0:1:36]} Bc7 {[%emt 0:2:7]} 12. a4 {[%emt 0:5:20]} Ne6 {[%emt 0:4:32]} 13. Bd2 {[%emt 0:7:2]} a6 {[%emt 0:9:1]} 14. cxd4 {[%emt 0:8:49]} cxd4 {[%emt 0:0:19]} 15. b4 {[%emt 0:2:6]} b5 {[%emt 0:0:29]} 16. axb5 {[%emt 0:1:12]} axb5 {[%emt 0:0:9]} 17. Na5 {[%emt 0:1:14]} Nxa5 {[%emt 0:1:32]} 18. bxa5 {[%emt 0:1:1]} O-O {[%emt 0:0:13]} 19. Bb4 {[%emt 0:1:35]} Nf4 {[%emt 0:5:25]} 20. Qd2 {[%emt 0:0:47]} Re8 {[%emt 0:1:20]} 21. Kh1 {[%emt 0:4:11]} Ra6 {[%emt 0:6:9]} 22. g3 {[%emt 0:4:31]} Ne6 {[%emt 0:3:59]} 23. Rfc1 {[%emt 0:2:58]} Qa8 {[%emt 0:5:28]} 24. Ng5 {[%emt 0:2:21]} Bd8 {[%emt 0:5:48]} 25. Nxe6 {[%emt 0:0:42]} Rexe6 {[%emt 0:0:6]} 26. Rc5 {[%emt 0:17:5]} Qb7 {[%emt 0:3:24]} 27. Rac1 {[%emt 0:0:0]} Re8 {[%emt 0:2:14]} 28. Qa2 {[%emt 0:0:0]} Qd7 {[%emt 0:3:21]} 29. Kg2 {[%emt 0:0:0]} h5 {[%emt 0:0:22]} 30. h4 {[%emt 0:0:0]} Qg4 {[%emt 0:3:45]} 31. f3 {[%emt 0:0:0]} Qd7 {[%emt 0:0:36]} 32. Rd5 {[%emt 0:0:0]} Qe6 {[%emt 0:0:24]} 33. Qd2 {[%emt 0:0:17]} Qg6 {[%emt 0:1:16]} 34. Rc8 {[%emt 0:0:45]} Qf6 {[%emt 0:1:10]} 35. Qg5 {[%emt 0:0:33]} 1-0

[Event "Sheffield Masters 2024"]
[White "Dunnington,Angus J"]
[Black "Kanyamarala,Trisha"]
[Site "Sheffield"]
[Round "2.5"]
[Annotator "RC"]
[Result "1/2-1/2"]
[Date "2024.04.11"]
[WhiteElo "2317"]
[BlackElo "2285"]
[PlyCount "37"]
[TimeControl "5400+30"]

1. Nf3 {[%emt 0:0:1]} d5 {[%emt 0:0:12]} 2. g3 {[%emt 0:0:34]} Nd7 {[%emt 0:0:16]} 3. d4 {[%emt 0:2:53]} Nb6 {[%emt 0:0:29]} 4. Nbd2 {[%emt 0:0:33]} Bf5 {[%emt 0:0:42]} 5. Nh4 {[%emt 0:2:40]} Bg4 {[%emt 0:3:44]} 6. h3 {[%emt 0:0:42]} Bh5 {[%emt 0:1:8]} 7. Ng2 {[%emt 0:0:30]} Nf6 {[%emt 0:6:42]} 8. Nf4 {[%emt 0:1:52]} Bg6 {[%emt 0:0:43]} 9. Nxg6 {[%emt 0:0:13]} hxg6 {[%emt 0:0:10]} 10. Bg2 {[%emt 0:0:14]} e6 {[%emt 0:1:5]} 11. e4 {[%emt 0:1:4]} dxe4 {[%emt 0:3:52]} 12. Nxe4 {[%emt 0:0:5]} Nxe4 {[%emt 0:1:15]} 13. Bxe4 {[%emt 0:0:5]} c6 {[%emt 0:0:17]} 14. c3 {[%emt 0:4:17]} Be7 {[%emt 0:3:35]} 15. Qb3 {[%emt 0:10:9]} Bg5 {[%emt 0:4:41]} 16. f4 {[%emt 0:14:20]} Be7 {[%emt 0:1:17]} 17. h4 {[%emt 0:3:48]} Qc7 {[%emt 0:2:57]} 18. Be3 {[%emt 0:1:30]} O-O-O {[%emt 0:8:39]} 19. O-O-O {[%emt 0:4:21]} 1/2-1/2

[Event "Sheffield Masters 2024"]
[White "Kanyamarala,Trisha"]
[Black "Nagy,Gabor"]
[Site "Sheffield"]
[Round "3.1"]
[Annotator "TA"]
[Result "1-0"]
[Date "2024.04.11"]
[WhiteElo "2285"]
[BlackElo "2436"]
[PlyCount "83"]
[TimeControl "5400+30"]

{[%evp 18,83,45,32,84,53,64,52,67,61,297,317,303,311,318,185,216,233,216,132,182,166,151,164,154,172,133,88,80,76,70,79,117,110,114,118,135,118,122,122,109,93,100,95,145,81,73,83,101,94,84,93,396,397,658,670,668,598,682,668,734,443,801,467,29989,29967,5397,4886]} 1. d4 {[%emt 0:0:9]} Nf6 {[%emt 0:0:26]} 2. c4 {[%emt 0:0:7]} e6 {[%emt 0:0:19]} 3. Nf3 {[%emt 0:0:10]} b6 {[%emt 0:1:6]} 4. g3 {[%emt 0:0:44]} Bb7 {[%emt 0:0:34]} 5. Bg2 {[%emt 0:0:12]} Bb4+ {[%emt 0:0:34]} 6. Bd2 {[%emt 0:0:26]} Bxd2+ {[%emt 0:0:43]} 7. Qxd2 {[%emt 0:3:9]} d6 {[%emt 0:0:59]} 8. Nc3 {[%emt 0:1:30]} Qe7 {[%emt 0:2:4]} 9. O-O {[%emt 0:2:39]} O-O {[%emt 0:0:32]} 10. Rfe1 {[%emt 0:4:55]} c5 {[%emt 0:1:17]} (10... Ne4 $14 11. Qc2 f5 )11. e4 {[%emt 0:4:18][%cal Ye2e4,Ye4e5,Ye5d6][%mdl 32]} cxd4 {[%emt 0:0:54]} 12. Nxd4 {[%emt 0:1:21]} Rd8 {[%emt 0:0:11] White is slightly better.} 13. Rad1 {[%emt 0:2:42] aiming for e5.} a6 $2 {[%emt 0:3:15]} ({Black should try} 13... Ne8 $14 )14. e5 $1 $18 {[%emt 0:13:20]} Ne8 {[%emt 0:1:53] White must now prevent ...Bxg2.} (14... dxe5 $2 15. Nf5 Rxd2 16. Nxe7+ Kf8 17. Bxb7 $18 (17. Rxd2 Bxg2 18. Kxg2 Kxe7 $18 ))15. exd6 $1 {[%emt 0:7:17]} Qd7 {[%emt 0:0:29][%cal Yb7g2]} 16. Ne4 {[%emt 0:6:29]} (16. Bxb7 Qxb7 17. Ne4 Nd7 $18 )(16. Nxe6 $142 fxe6 17. Bh3 (17. Bxb7 Qxb7 18. Rxe6 Qf3 $16 ))Bxe4 {[%emt 0:1:8]} 17. Bxe4 {[%emt 0:0:49]} Ra7 {[%emt 0:0:7] Black is weak on the light squares} 18. Qc2 {[%emt 0:7:22]} g6 {[%emt 0:1:5]} (18... Qc8 $16 )19. b4 {[%emt 0:3:51][%cal Yb2b4,Yb4c5][%mdl 32]} Nxd6 {[%emt 0:1:14]} 20. c5 {[%emt 0:4:51]} bxc5 {[%emt 0:0:42]} 21. bxc5 {[%emt 0:4:11]} (21. Qxc5 Nxe4 22. Rxe4 Rc7 $11 )Rc7 {[%emt 0:0:31]} 22. Nb3 {[%emt 0:3:53]} Qe8 {[%emt 0:1:18]} 23. Qd2 {[%emt 0:3:4]} ({Not} 23. Rxd6 Rxd6 24. Rb1 Qf8 $17 )Nb7 {[%emt 0:0:22]} 24. Qb4 {[%emt 0:2:35]} Nc6 {[%emt 0:13:21]} 25. Rxd8 $1 {[%emt 0:2:48]} Nbxd8 {[%emt 0:1:28]} 26. Qb6 {[%emt 0:0:50][%csl Ya6,Yc7]} Qd7 {[%emt 0:0:59]} 27. Bf3 {[%emt 0:2:33]} Qc8 {[%emt 0:2:25]} 28. Rd1 {[%emt 0:0:48]} Kg7 {[%emt 0:1:34]} 29. Be2 {[%emt 0:2:40]} Nb8 {[%emt 0:3:40]} 30. Na5 $36 {[%emt 0:6:45][%cal Yb3a5,Ya5c4,Yc4e5,Ye5g4,Yg4f6,Yf6e8,Ye8d6,Yd6f7][%mdl 2080] Strongly threatening Nc4. White has strong initiative. White is much more active. The black rooks are passive.} Ndc6 {[%emt 0:1:53]} (30... Nb7 $142 )31. Qb2+ {[%emt 0:0:35]} (31. Nxc6 $142 Rxc6 32. Rd8 Rxb6 33. Rxc8 )e5 $16 {[%emt 0:0:38] [#]} 32. Nc4 {[%emt 0:1:43]} Nd4 {[%emt 0:3:10]} 33. Nxe5 {[%emt 0:0:34]} Nxe2+ {[%emt 0:0:9]} 34. Qxe2 {[%emt 0:0:5] Ng4 is the strong threat.} Rxc5 $2 {[%emt 0:0:8][%mdl 8192] [#]} (34... Re7 $16 {is a better chance.} )35. Ng4 $1 $18 {[%emt 0:2:2] Qb2+ would now be deadly.} h5 $2 {[%emt 0:4:32]} (35... Rf5 36. Qb2+ f6 )36. Qb2+ {[%emt 0:0:18]} Kh7 {[%emt 0:0:6]} 37. Nf6+ {[%emt 0:0:37]} Kh6 {[%emt 0:0:8]} 38. Qd2+ {[%emt 0:0:43]} Kg7 {[%emt 0:2:28][%cal Yc8e6]} 39. Qd4 {[%emt 0:0:43]} Kh6 {[%emt 0:1:9]} (39... Rc1 $142 40. Kg2 (40. Nxh5+ Kf8 $18 )Qc6+ (40... Rxd1 $2 41. Nxh5+ Kh6 42. Qg7+ Kxh5 43. Qh7+ Kg5 44. Qh4+ Kf5 45. Qh3+ Ke5 46. Qxc8 $18 )41. Nd5+ Kh7 42. Rxc1 Qxc1 )40. Ne8 {[%emt 0:2:39]} Qf5 {[%emt 0:4:2]} (40... Qxe8 $18 41. Qxc5 h4 )41. Nd6 {[%emt 0:1:18]} Qf3 {[%emt 0:0:6]} 42. Nxf7+ {[%emt 0:1:0] Weighted Error Value: White=0.36/Black=0.58.  Loses game:     	---       	Black=2      Mistake:       	White=2     	Black=4      Inaccurate:     	White=3     	Black=1      OK:         	White=7     	Black=16     Best:        	White=1     	Black=2      Strong:       	White=4     	---} 1-0

[Event "Sheffield Masters 2024"]
[White "Pein,Jonathan"]
[Black "Pal,Rohan"]
[Site "Sheffield"]
[Round "3.3"]
[Annotator "RC"]
[Result "1-0"]
[Date "2024.04.11"]
[WhiteElo "2247"]
[BlackElo "2142"]
[PlyCount "67"]
[TimeControl "5400+30"]

1. e4 {[%emt 0:0:2]} c5 {[%emt 0:0:7]} 2. Nf3 {[%emt 0:0:5]} e6 {[%emt 0:0:2]} 3. d4 {[%emt 0:0:8]} cxd4 {[%emt 0:0:4]} 4. Nxd4 {[%emt 0:0:4]} Nc6 {[%emt 0:0:3]} 5. Nc3 {[%emt 0:0:18]} Qc7 {[%emt 0:0:6]} 6. a3 {[%emt 0:2:56]} Nf6 {[%emt 0:4:24]} 7. Be3 {[%emt 0:1:30]} a6 {[%emt 0:1:35]} 8. Be2 {[%emt 0:2:49]} Be7 {[%emt 0:2:41]} 9. O-O {[%emt 0:2:46]} O-O {[%emt 0:1:52]} 10. f4 {[%emt 0:3:49]} d5 {[%emt 0:6:20]} 11. e5 {[%emt 0:9:38]} Nd7 {[%emt 0:0:46]} 12. Rf3 {[%emt 0:7:37]} b5 {[%emt 0:14:13]} 13. Bd3 {[%emt 0:16:45]} h6 {[%emt 0:6:13]} 14. Rg3 {[%emt 0:3:22]} Kh8 {[%emt 0:20:19]} 15. Nxc6 {[%emt 0:24:51]} Qxc6 {[%emt 0:0:7]} 16. Qg4 {[%emt 0:3:14]} Rg8 {[%emt 0:0:28]} 17. Qh5 {[%emt 0:1:3]} f5 {[%emt 0:9:3]} 18. Rg6 {[%emt 0:3:17]} Bf8 {[%emt 0:4:39]} 19. Qxf5 {[%emt 0:1:34]} exf5 {[%emt 0:3:22]} 20. Rxc6 {[%emt 0:0:1]} g6 {[%emt 0:0:58]} 21. Bd4 {[%emt 0:2:0]} Bg7 {[%emt 0:1:32]} 22. Rxg6 {[%emt 0:1:4]} Nf8 {[%emt 0:0:4]} 23. Rd6 {[%emt 0:1:36]} Ne6 {[%emt 0:0:8]} 24. Ne2 {[%emt 0:4:51]} Bf8 {[%emt 0:0:50]} 25. Bc3 {[%emt 0:3:57]} d4 {[%emt 0:3:8]} 26. Nxd4 {[%emt 0:1:19]} Nxf4 {[%emt 0:2:45]} 27. Nxf5 {[%emt 0:1:29]} Bxf5 {[%emt 0:6:38]} 28. e6+ {[%emt 0:1:37]} Bg7 {[%emt 0:1:55]} 29. Bxg7+ {[%emt 0:0:14]} Rxg7 {[%emt 0:0:4]} 30. Bxf5 {[%emt 0:0:14]} Rf8 {[%emt 0:1:51]} 31. e7 {[%emt 0:1:15]} Rxe7 {[%emt 0:1:26]} 32. Rxh6+ {[%emt 0:0:16]} Kg8 {[%emt 0:0:3]} 33. Bg4 {[%emt 0:0:39]} Rg7 {[%emt 0:1:20]} 34. Be6+ {[%emt 0:0:14]} 1-0

[Event "Sheffield Masters 2024"]
[White "O`Gorman,Tom"]
[Black "Ledger,Andrew J"]
[Site "Sheffield"]
[Round "3.4"]
[Annotator "RC"]
[Result "1/2-1/2"]
[Date "2024.04.11"]
[WhiteElo "2321"]
[BlackElo "2336"]
[PlyCount "136"]
[TimeControl "5400+30"]

1. e4 {[%emt 0:0:14]} c6 {[%emt 0:0:13]} 2. d4 {[%emt 0:0:14]} d5 {[%emt 0:0:6]} 3. e5 {[%emt 0:0:5]} Bf5 {[%emt 0:0:27]} 4. Nf3 {[%emt 0:0:6]} e6 {[%emt 0:0:6]} 5. Be2 {[%emt 0:0:8]} Ne7 {[%emt 0:1:8]} 6. O-O {[%emt 0:0:10]} Nd7 {[%emt 0:0:18]} 7. Nbd2 {[%emt 0:0:40]} h6 {[%emt 0:1:12]} 8. Nb3 {[%emt 0:0:37]} Qc7 {[%emt 0:2:53]} 9. Bd2 {[%emt 0:2:38]} a5 {[%emt 0:8:19]} 10. a4 {[%emt 0:3:13]} Bh7 {[%emt 0:6:8]} 11. Rc1 {[%emt 0:5:30]} Qb6 {[%emt 0:6:55]} 12. Bc3 {[%emt 0:9:46]} Ng6 {[%emt 0:9:15]} 13. Bd3 {[%emt 0:28:34]} Bb4 {[%emt 0:2:9]} 14. Bxb4 {[%emt 0:1:0]} Qxb4 {[%emt 0:1:0]} 15. c3 {[%emt 0:0:50]} Qe7 {[%emt 0:3:31]} 16. Ne1 {[%emt 0:13:14]} O-O {[%emt 0:2:44]} 17. f4 {[%emt 0:0:39]} Nh4 {[%emt 0:8:21]} 18. Bxh7+ {[%emt 0:14:12]} Kxh7 {[%emt 0:0:5]} 19. g3 {[%emt 0:2:35]} Ng6 {[%emt 0:4:45]} 20. Ng2 {[%emt 0:2:55]} f6 {[%emt 0:5:43]} 21. Qd3 {[%emt 0:2:9]} f5 {[%emt 0:4:41]} 22. Ne3 {[%emt 0:0:12]} Qf7 {[%emt 0:5:55]} 23. c4 {[%emt 0:3:24]} dxc4 {[%emt 0:4:39]} 24. Nxc4 {[%emt 0:0:14]} Qe7 {[%emt 0:1:20]} 25. Nd6 {[%emt 0:5:13]} Nb6 {[%emt 0:1:19]} 26. Qd2 {[%emt 0:1:4]} Nc8 {[%emt 0:2:47]} 27. Nxc8 {[%emt 0:0:35]} Rfxc8 {[%emt 0:0:6]} 28. Nxa5 {[%emt 0:0:26]} Rd8 {[%emt 0:0:34]} 29. Qc3 {[%emt 0:0:46]} Qd7 {[%emt 0:1:12]} 30. Rfd1 {[%emt 0:0:52]} Ne7 {[%emt 0:6:9]} 31. Nc4 {[%emt 0:0:19]} Rxa4 {[%emt 0:1:43]} 32. Qb3 {[%emt 0:1:41]} Ra6 {[%emt 0:2:13]} 33. Nb6 {[%emt 0:1:50]} Qc7 {[%emt 0:2:5]} 34. Na4 {[%emt 0:0:26]} b6 {[%emt 0:0:51]} 35. Nc3 {[%emt 0:0:21]} Qd7 {[%emt 0:0:41]} 36. Qc4 {[%emt 0:0:28]} b5 {[%emt 0:2:1]} 37. Qb3 {[%emt 0:0:18]} Kg8 {[%emt 0:1:21]} 38. Rc2 {[%emt 0:0:41]} Kf7 {[%emt 0:0:8]} 39. Ne2 {[%emt 0:0:54]} Rda8 {[%emt 0:1:10]} 40. Rcc1 {[%emt 0:0:34]} Qd5 {[%emt 0:0:20]} 41. Qxd5 {[%emt 0:0:18]} Nxd5 {[%emt 0:0:13]} 42. Kf2 {[%emt 0:0:14]} Ke7 {[%emt 0:0:18]} 43. Nc3 {[%emt 0:0:30]} Nxc3 {[%emt 0:1:0]} 44. Rxc3 {[%emt 0:0:2]} Kd7 {[%emt 0:0:9]} 45. g4 {[%emt 0:0:44]} Ra2 {[%emt 0:1:30]} 46. Rd2 {[%emt 0:0:3]} fxg4 {[%emt 0:1:1]} 47. Rg3 {[%emt 0:0:1]} Ke7 {[%emt 0:0:21]} 48. Rxg4 {[%emt 0:0:6]} Kf7 {[%emt 0:0:3]} 49. Ke3 {[%emt 0:0:34]} g6 {[%emt 0:1:24]} 50. Rg1 {[%emt 0:0:18]} Ra1 {[%emt 0:0:31]} 51. Rg3 {[%emt 0:0:31]} Re1+ {[%emt 0:0:17]} 52. Kf2 {[%emt 0:1:12]} Raa1 {[%emt 0:0:45]} 53. Rc3 {[%emt 0:1:2]} Rec1 {[%emt 0:1:9]} 54. Rdc2 {[%emt 0:0:29]} Rxc2+ {[%emt 0:0:6]} 55. Rxc2 {[%emt 0:0:4]} Ra6 {[%emt 0:0:38]} 56. Kf3 {[%emt 0:0:22]} Ra4 {[%emt 0:1:52]} 57. Ke3 {[%emt 0:0:57]} Rb4 {[%emt 0:0:5]} 58. h4 {[%emt 0:1:5]} h5 {[%emt 0:0:40]} 59. Rd2 {[%emt 0:0:57]} Rb3+ {[%emt 0:0:13]} 60. Ke4 {[%emt 0:0:11]} Rh3 {[%emt 0:0:40]} 61. Rc2 {[%emt 0:0:33]} Rxh4 {[%emt 0:0:11]} 62. Ke3 {[%emt 0:0:41]} Rh3+ {[%emt 0:0:19]} 63. Ke4 {[%emt 0:0:5]} Rb3 {[%emt 0:0:55]} 64. Rxc6 {[%emt 0:0:6]} Rxb2 {[%emt 0:0:3]} 65. Rc7+ {[%emt 0:0:24]} Kf8 {[%emt 0:0:21]} 66. Rc8+ {[%emt 0:0:18]} Kf7 {[%emt 0:1:15]} 67. Rc7+ {[%emt 0:0:4]} Kf8 {[%emt 0:0:50]} 68. Rc8+ {[%emt 0:0:5]} Kf7 {[%emt 0:0:16]} 1/2-1/2

[Event "Sheffield Masters 2024"]
[White "Chow,Samuel"]
[Black "Gourlay,Iain"]
[Site "Sheffield"]
[Round "3.5"]
[Annotator "RC"]
[Result "1/2-1/2"]
[Date "2024.04.11"]
[WhiteElo "2350"]
[BlackElo "2307"]
[PlyCount "82"]
[TimeControl "5400+30"]

1. d4 {[%emt 0:0:3]} d5 {[%emt 0:8:19]} 2. c4 {[%emt 0:0:23]} e6 {[%emt 0:0:16]} 3. Nf3 {[%emt 0:0:22]} Nf6 {[%emt 0:0:16]} 4. Nc3 {[%emt 0:0:14]} Be7 {[%emt 0:0:33]} 5. Bf4 {[%emt 0:0:20]} O-O {[%emt 0:0:24]} 6. e3 {[%emt 0:0:14]} c5 {[%emt 0:0:34]} 7. dxc5 {[%emt 0:0:32]} Bxc5 {[%emt 0:0:16]} 8. a3 {[%emt 0:0:26]} Nc6 {[%emt 0:0:31]} 9. Qc2 {[%emt 0:0:25]} Qa5 {[%emt 0:0:41]} 10. Rd1 {[%emt 0:0:35]} Be7 {[%emt 0:0:16]} 11. Be2 {[%emt 0:2:15]} Ne4 {[%emt 0:1:49]} 12. cxd5 {[%emt 0:4:50]} Nxc3 {[%emt 0:0:18]} 13. bxc3 {[%emt 0:0:30]} exd5 {[%emt 0:0:26]} 14. O-O {[%emt 0:0:31]} h6 {[%emt 0:1:57]} 15. c4 {[%emt 0:2:50]} Be6 {[%emt 0:10:34]} 16. cxd5 {[%emt 0:1:25]} Bxd5 {[%emt 0:0:7]} 17. Bc7 {[%emt 0:0:28]} Qxc7 {[%emt 0:1:55]} 18. Rxd5 {[%emt 0:0:7]} Bxa3 {[%emt 0:8:50]} 19. Nd4 {[%emt 0:20:43]} Bd6 {[%emt 0:10:36]} 20. Rc1 {[%emt 0:12:20]} Nxd4 {[%emt 0:5:32]} 21. Rxd4 {[%emt 0:1:5]} Bxh2+ {[%emt 0:1:38]} 22. Kf1 {[%emt 0:0:54]} Qxc2 {[%emt 0:0:23]} 23. Rxc2 {[%emt 0:0:5]} Be5 {[%emt 0:0:22]} 24. Rd7 {[%emt 0:2:29]} a5 {[%emt 0:2:2]} 25. f4 {[%emt 0:2:2]} Bb8 {[%emt 0:13:45]} 26. Rxb7 {[%emt 0:7:7]} Ra7 {[%emt 0:5:53]} 27. Rcb2 {[%emt 0:3:48]} Rxb7 {[%emt 0:0:41]} 28. Rxb7 {[%emt 0:0:5]} Rc8 {[%emt 0:1:26]} 29. Bd1 {[%emt 0:3:26]} Bd6 {[%emt 0:3:5]} 30. Ke2 {[%emt 0:7:20]} Rc7 {[%emt 0:6:45]} 31. Rb6 {[%emt 0:1:16]} Bc5 {[%emt 0:1:9]} 32. Rb5 {[%emt 0:0:33]} Bb4 {[%emt 0:0:35]} 33. Bb3 {[%emt 0:1:16]} g6 {[%emt 0:1:36]} 34. g4 {[%emt 0:1:49]} Kg7 {[%emt 0:1:36]} 35. e4 {[%emt 0:0:32]} Ra7 {[%emt 0:2:11]} 36. e5 {[%emt 0:2:57]} h5 {[%emt 0:1:57]} 37. gxh5 {[%emt 0:5:19]} gxh5 {[%emt 0:0:7]} 38. e6 {[%emt 0:1:52]} fxe6 {[%emt 0:0:32]} 39. Rxh5 {[%emt 0:0:27]} Ra6 {[%emt 0:2:38]} 40. f5 {[%emt 0:2:36]} exf5 {[%emt 0:0:37]} 41. Rxf5 {[%emt 0:0:5]} a4 {[%emt 0:1:7]} 1/2-1/2

[Event "Sheffield Masters 2024"]
[White "Nagy,Gabor"]
[Black "Gourlay,Iain"]
[Site "Sheffield"]
[Round "4.1"]
[Annotator "TA"]
[Result "1/2-1/2"]
[Date "2024.04.12"]
[WhiteElo "2436"]
[BlackElo "2307"]
[PlyCount "45"]
[TimeControl "5400+30"]

{[%evp 14,45,10,12,9,8,19,20,18,28,15,6,13,18,19,3,14,14,13,10,11,0,0,0,0,0,0,0,0,0,0,-5,0,-6]} 1. e4 {[%emt 0:0:38]} c6 {[%emt 0:0:22]} 2. d4 {[%emt 0:0:41]} d5 {[%emt 0:0:11]} 3. exd5 {[%emt 0:1:28]} cxd5 {[%emt 0:0:9]} 4. Bd3 {[%emt 0:0:8]} Nc6 {[%emt 0:0:17]} 5. c3 {[%emt 0:0:7]} Nf6 {[%emt 0:0:17]} 6. h3 {[%emt 0:0:8]} e5 {[%emt 0:0:35]} 7. dxe5 {[%emt 0:0:7]} Nxe5 {[%emt 0:0:6]} 8. Nf3 {[%emt 0:0:7]} Nxd3+ {[%emt 0:0:15]} 9. Qxd3 {[%emt 0:0:7]} Bd6 {[%emt 0:0:29][%cal Yf8d6,Yd6f4,Yf4e5,Ye5f6][%mdl 32]} 10. O-O {[%emt 0:0:10]} O-O {[%emt 0:0:15]} 11. Bg5 {[%emt 0:0:16]} h6 {[%emt 0:0:52]} 12. Bh4 {[%emt 0:1:17] The position is equal.} Re8 {[%emt 0:1:44]} 13. Nbd2 {[%emt 0:0:41][%cal Yb1d2,Yd2b3,Yb3c5][%mdl 32]} Bd7 {[%emt 0:2:48]} 14. Nd4 {[%emt 0:2:40]} Bf4 {[%emt 0:7:15]} 15. N2b3 {[%emt 0:3:11]} Qb6 {[%emt 0:6:30]} 16. Bxf6 {[%emt 0:0:46]} Qxf6 {[%emt 0:0:14]} 17. Nc5 {[%emt 0:0:15][%csl Yb7,Yd7] Excellent horsemanship.} Bc6 {[%emt 0:4:25]} 18. Qf3 {[%emt 0:3:41]} Be5 {[%emt 0:8:16]} 19. Qxf6 {[%emt 0:1:36]} Bxf6 {[%emt 0:0:15]} 20. Rfd1 {[%emt 0:0:45]} a5 {[%emt 0:13:19]} 21. Nxc6 {[%emt 0:0:55]} bxc6 {[%emt 0:0:13]} 22. Kf1 {[%emt 0:0:17]} Rab8 {[%emt 0:4:2]} 23. Nd3 {[%emt 0:0:2] Not much happened in this game.   Weighted Error Value: White=0.03 (flawless) /Black=0.02 (flawless) .  OK:         	White=7     	Black=7} 1/2-1/2

[Event "Sheffield Masters 2024"]
[White "Ledger,Andrew J"]
[Black "Chow,Samuel"]
[Site "Sheffield"]
[Round "4.2"]
[Annotator "RC"]
[Result "1/2-1/2"]
[Date "2024.04.12"]
[WhiteElo "2336"]
[BlackElo "2350"]
[PlyCount "37"]
[TimeControl "5400+30"]

1. Nf3 {[%emt 0:0:6]} Nf6 {[%emt 0:0:11]} 2. c4 {[%emt 0:0:18]} c5 {[%emt 0:0:22]} 3. g3 {[%emt 0:0:13]} Nc6 {[%emt 0:0:34]} 4. Bg2 {[%emt 0:0:31]} d5 {[%emt 0:0:30]} 5. cxd5 {[%emt 0:0:55]} Nxd5 {[%emt 0:0:15]} 6. O-O {[%emt 0:0:44]} e5 {[%emt 0:0:55]} 7. Nc3 {[%emt 0:1:26]} Nc7 {[%emt 0:0:33]} 8. d3 {[%emt 0:1:28]} Be7 {[%emt 0:1:35]} 9. Nd2 {[%emt 0:1:44]} Bd7 {[%emt 0:1:30]} 10. Nc4 {[%emt 0:2:6]} f6 {[%emt 0:2:52]} 11. f4 {[%emt 0:2:10]} b5 {[%emt 0:1:11]} 12. Ne3 {[%emt 0:2:24]} Rb8 {[%emt 0:7:56]} 13. Ned5 {[%emt 0:6:10]} O-O {[%emt 0:4:26]} 14. Be3 {[%emt 0:5:8]} Nxd5 {[%emt 0:3:7]} 15. Nxd5 {[%emt 0:1:4]} Bd6 {[%emt 0:2:22]} 16. Rc1 {[%emt 0:1:50]} Nd4 {[%emt 0:1:22]} 17. fxe5 {[%emt 0:11:6]} fxe5 {[%emt 0:0:16]} 18. Nc3 {[%emt 0:1:7]} Be7 {[%emt 0:6:40]} 19. Rxf8+ {[%emt 0:5:21]} 1/2-1/2